[Event "*** Titled Tuesday Blitz"]
[Site "Chess.com"]
[Date "2020.05.19"]
[Round "3"]
[White "rekosheten"]
[Black "Joshukid"]
[Result "1/2-1/2"]
[WhiteElo "2369"]
[BlackElo "2549"]
[TimeControl "180+1"]
[EndTime "12:30:07 PDT"]
[Termination "Game drawn by repetition"]

1. d4 {[%clk 0:03:00.9]} 1... Nf6 {[%clk 0:02:55.7]} 2. Nf3 {[%clk 0:02:59.9]}
2... d5 {[%clk 0:02:55.8]} 3. Bf4 {[%clk 0:02:59.8]} 3... e6 {[%clk 0:02:55.4]}
4. e3 {[%clk 0:03:00]} 4... c5 {[%clk 0:02:46.5]} 5. c3 {[%clk 0:02:59.6]} 5...
Bd6 {[%clk 0:02:44.7]} 6. Bg3 {[%clk 0:02:58.6]} 6... Qc7 {[%clk 0:02:44.7]} 7.
Nbd2 {[%clk 0:02:55.9]} 7... Nbd7 {[%clk 0:02:45.1]} 8. Rc1 {[%clk 0:01:54.5]}
8... O-O {[%clk 0:02:40.5]} 9. c4 {[%clk 0:01:29]} 9... Bxg3 {[%clk 0:02:27.8]}
10. hxg3 {[%clk 0:01:28.6]} 10... dxc4 {[%clk 0:02:05.8]} 11. Bxc4 {[%clk
0:01:26.5]} 11... Qa5 {[%clk 0:02:00.2]} 12. a3 {[%clk 0:01:08.1]} 12... cxd4
{[%clk 0:01:53.6]} 13. Nxd4 {[%clk 0:01:07.7]} 13... Ne5 {[%clk 0:01:53.1]} 14.
Be2 {[%clk 0:01:05.4]} 14... Bd7 {[%clk 0:01:50]} 15. O-O {[%clk 0:01:02.6]}
15... Rac8 {[%clk 0:01:33.1]} 16. N2f3 {[%clk 0:00:53.5]} 16... Nxf3+ {[%clk
0:01:26.1]} 17. Bxf3 {[%clk 0:00:52.2]} 17... e5 {[%clk 0:01:26.6]} 18. Nb3
{[%clk 0:00:39.1]} 18... Qb6 {[%clk 0:00:55.1]} 19. Nd2 {[%clk 0:00:32.5]} 19...
Qxb2 {[%clk 0:00:51.3]} 20. Nc4 {[%clk 0:00:28.7]} 20... Qb5 {[%clk 0:00:47.1]}
21. Nd6 {[%clk 0:00:20.8]} 21... Rxc1 {[%clk 0:00:46.8]} 22. Qxc1 {[%clk
0:00:20.9]} 22... Qa6 {[%clk 0:00:39.4]} 23. Nxb7 {[%clk 0:00:18.6]} 23... Rc8
{[%clk 0:00:38]} 24. Qb2 {[%clk 0:00:16.8]} 24... e4 {[%clk 0:00:34.4]} 25. Be2
{[%clk 0:00:16.1]} 25... Qb6 {[%clk 0:00:25.3]} 26. Qxb6 {[%clk 0:00:15]} 26...
axb6 {[%clk 0:00:26.2]} 27. Rb1 {[%clk 0:00:14.6]} 27... Rc2 {[%clk 0:00:23]}
28. Bf1 {[%clk 0:00:13.4]} 28... h5 {[%clk 0:00:16.7]} 29. Rxb6 {[%clk
0:00:10.7]} 29... Ng4 {[%clk 0:00:17.4]} 30. Nd6 {[%clk 0:00:08.6]} 30... Nxf2
{[%clk 0:00:16.9]} 31. Rb8+ {[%clk 0:00:07.4]} 31... Kh7 {[%clk 0:00:16.8]} 32.
Nxf7 {[%clk 0:00:08.3]} 32... Ng4 {[%clk 0:00:10.8]} 33. Ng5+ {[%clk 0:00:07.3]}
33... Kg6 {[%clk 0:00:10.8]} 34. Nxe4 {[%clk 0:00:07.9]} 34... Nxe3 {[%clk
0:00:10.2]} 35. Bd3 {[%clk 0:00:06.4]} 35... Rc1+ {[%clk 0:00:09.5]} 36. Kf2
{[%clk 0:00:06.2]} 36... Ng4+ {[%clk 0:00:10.1]} 37. Ke2 {[%clk 0:00:06.5]}
37... Bf5 {[%clk 0:00:10.1]} 38. Rb6+ {[%clk 0:00:05.8]} 38... Kf7 {[%clk
0:00:07.1]} 39. Ng5+ {[%clk 0:00:05.7]} 39... Ke7 {[%clk 0:00:07.7]} 40. Bxf5
{[%clk 0:00:06.4]} 40... Rc5 {[%clk 0:00:07.1]} 41. Re6+ {[%clk 0:00:05.7]}
41... Kf8 {[%clk 0:00:03.7]} 42. Nh7+ {[%clk 0:00:05.7]} 42... Kg8 {[%clk
0:00:04.1]} 43. Re8+ {[%clk 0:00:05.1]} 43... Kf7 {[%clk 0:00:04.2]} 44. Rf8+
{[%clk 0:00:06]} 44... Ke7 {[%clk 0:00:04.2]} 45. Bxg4 {[%clk 0:00:05.6]} 45...
hxg4 {[%clk 0:00:03.9]} 46. Ng5 {[%clk 0:00:06.5]} 46... Rxg5 {[%clk 0:00:03.6]}
47. Rg8 {[%clk 0:00:05.9]} 47... Re5+ {[%clk 0:00:03.3]} 48. Kf2 {[%clk
0:00:05.3]} 48... Kf7 {[%clk 0:00:04.2]} 49. Ra8 {[%clk 0:00:04.6]} 49... Rc5
{[%clk 0:00:04.4]} 50. Ra4 {[%clk 0:00:03.9]} 50... Rc2+ {[%clk 0:00:05]} 51.
Ke3 {[%clk 0:00:03.5]} 51... Rxg2 {[%clk 0:00:04]} 52. Rxg4 {[%clk 0:00:03.3]}
52... Ra2 {[%clk 0:00:04.6]} 53. Rf4+ {[%clk 0:00:03.7]} 53... Kg6 {[%clk
0:00:04.9]} 54. Ra4 {[%clk 0:00:04.6]} 54... Ra1 {[%clk 0:00:04.6]} 55. Kf3
{[%clk 0:00:05.5]} 55... Kg5 {[%clk 0:00:04.8]} 56. Ra5+ {[%clk 0:00:05.1]}
56... Kh6 {[%clk 0:00:04.7]} 57. Kg4 {[%clk 0:00:06]} 57... g6 {[%clk
0:00:05.1]} 58. Ra6 {[%clk 0:00:06.1]} 58... Ra2 {[%clk 0:00:05.3]} 59. Ra5
{[%clk 0:00:05.5]} 59... Ra1 {[%clk 0:00:05.1]} 60. Ra4 {[%clk 0:00:06.4]} 60...
Ra2 {[%clk 0:00:04.8]} 61. Ra7 {[%clk 0:00:07.3]} 61... Ra1 {[%clk 0:00:05.3]}
62. Ra8 {[%clk 0:00:07.6]} 62... Ra2 {[%clk 0:00:05.8]} 63. Ra5 {[%clk
0:00:08.5]} 63... Ra1 {[%clk 0:00:05]} 1/2-1/2

[Event "*** Titled Tuesday Blitz"]
[Site "Chess.com"]
[Date "2020.05.19"]
[Round "3"]
[White "Vesper2018"]
[Black "White_Ghost"]
[Result "1-0"]
[WhiteElo "2247"]
[BlackElo "2434"]
[TimeControl "180+1"]
[EndTime "12:30:08 PDT"]
[Termination "Vesper2018 won by checkmate"]

1. e4 {[%clk 0:03:00.1]} 1... e5 {[%clk 0:02:55.6]} 2. Nf3 {[%clk 0:02:59.5]}
2... Nc6 {[%clk 0:02:55.5]} 3. Bc4 {[%clk 0:02:59.3]} 3... Nf6 {[%clk
0:02:54.7]} 4. d3 {[%clk 0:02:59.4]} 4... Be7 {[%clk 0:02:54.6]} 5. O-O {[%clk
0:02:58.1]} 5... O-O {[%clk 0:02:54.7]} 6. Re1 {[%clk 0:02:57.8]} 6... d6 {[%clk
0:02:55.3]} 7. c3 {[%clk 0:02:57.4]} 7... Kh8 {[%clk 0:02:55.4]} 8. Nbd2 {[%clk
0:02:56.3]} 8... Ng8 {[%clk 0:02:55.6]} 9. d4 {[%clk 0:02:49.3]} 9... f5 {[%clk
0:02:50.3]} 10. d5 {[%clk 0:02:44]} 10... Nb8 {[%clk 0:02:49.1]} 11. exf5 {[%clk
0:02:39.5]} 11... Bxf5 {[%clk 0:02:50]} 12. Ne4 {[%clk 0:02:36.7]} 12... Nd7
{[%clk 0:02:48.8]} 13. Neg5 {[%clk 0:02:31.8]} 13... Nb6 {[%clk 0:02:38.5]} 14.
Bb3 {[%clk 0:02:31]} 14... Nf6 {[%clk 0:02:29.9]} 15. Nh4 {[%clk 0:02:24.1]}
15... Bd7 {[%clk 0:02:24.3]} 16. Qd3 {[%clk 0:01:56.8]} 16... e4 {[%clk
0:02:15.9]} 17. Qd1 {[%clk 0:01:41.1]} 17... Bg4 {[%clk 0:02:00.9]} 18. Qd2
{[%clk 0:01:27.4]} 18... Qd7 {[%clk 0:01:41.9]} 19. h3 {[%clk 0:01:22.6]} 19...
Bh5 {[%clk 0:01:40.3]} 20. Ne6 {[%clk 0:01:20.1]} 20... Rg8 {[%clk 0:01:37.1]}
21. Nf5 {[%clk 0:01:18.2]} 21... Bf7 {[%clk 0:01:33.1]} 22. Qd4 {[%clk
0:01:05.4]} 22... a5 {[%clk 0:01:27.5]} 23. a4 {[%clk 0:00:52.4]} 23... Nbxd5
{[%clk 0:01:18.1]} 24. Ng5 {[%clk 0:00:45.1]} 24... Bg6 {[%clk 0:01:02.6]} 25.
Nxe7 {[%clk 0:00:38.8]} 25... Nxe7 {[%clk 0:00:56.5]} 26. Be6 {[%clk 0:00:37.7]}
26... Qc6 {[%clk 0:00:54.2]} 27. Bxg8 {[%clk 0:00:37.5]} 27... Rxg8 {[%clk
0:00:49.5]} 28. Bf4 {[%clk 0:00:37.5]} 28... Nf5 {[%clk 0:00:49.1]} 29. Qd2
{[%clk 0:00:37.4]} 29... Rf8 {[%clk 0:00:48.1]} 30. Ne6 {[%clk 0:00:30.3]} 30...
Re8 {[%clk 0:00:48]} 31. Nd4 {[%clk 0:00:30.6]} 31... Qd7 {[%clk 0:00:42.6]} 32.
b4 {[%clk 0:00:27]} 32... axb4 {[%clk 0:00:42.1]} 33. cxb4 {[%clk 0:00:27.2]}
33... Nd5 {[%clk 0:00:39.7]} 34. Nxf5 {[%clk 0:00:25.6]} 34... Qxf5 {[%clk
0:00:40.6]} 35. Bg3 {[%clk 0:00:25.8]} 35... e3 {[%clk 0:00:36.3]} 36. fxe3
{[%clk 0:00:25.3]} 36... Qe4 {[%clk 0:00:32.7]} 37. b5 {[%clk 0:00:20.4]} 37...
Nf6 {[%clk 0:00:28.9]} 38. a5 {[%clk 0:00:19.3]} 38... Qe6 {[%clk 0:00:25.7]}
39. Bf4 {[%clk 0:00:17.1]} 39... Ne4 {[%clk 0:00:21.6]} 40. Qb2 {[%clk
0:00:17.1]} 40... Nc5 {[%clk 0:00:14.5]} 41. a6 {[%clk 0:00:15.8]} 41... Nd3
{[%clk 0:00:14.1]} 42. Qd2 {[%clk 0:00:15.6]} 42... Nxe1 {[%clk 0:00:13.9]} 43.
Qxe1 {[%clk 0:00:15.5]} 43... bxa6 {[%clk 0:00:14.2]} 44. bxa6 {[%clk
0:00:15.7]} 44... Be4 {[%clk 0:00:14.8]} 45. a7 {[%clk 0:00:15]} 45... Qg6
{[%clk 0:00:13]} 46. Qd2 {[%clk 0:00:15.2]} 46... Qf6 {[%clk 0:00:12.5]} 47. Qd4
{[%clk 0:00:14.6]} 47... Qg6 {[%clk 0:00:10.2]} 48. Ra2 {[%clk 0:00:14.4]} 48...
Ba8 {[%clk 0:00:09.6]} 49. Kh2 {[%clk 0:00:13.1]} 49... h6 {[%clk 0:00:08.8]}
50. Rb2 {[%clk 0:00:12.8]} 50... Kh7 {[%clk 0:00:09]} 51. Qd2 {[%clk 0:00:12.3]}
51... Rd8 {[%clk 0:00:04.2]} 52. Rb8 {[%clk 0:00:11.8]} 52... Qe8 {[%clk
0:00:04.3]} 53. Qb2 {[%clk 0:00:11.6]} 53... Be4 {[%clk 0:00:02.8]} 54. Rxd8
{[%clk 0:00:10.4]} 54... Qxd8 {[%clk 0:00:03]} 55. Qb8 {[%clk 0:00:10.4]} 55...
Qh4 {[%clk 0:00:02.5]} 56. a8=Q {[%clk 0:00:09.2]} 56... Bxa8 {[%clk 0:00:03.1]}
57. Qxa8 {[%clk 0:00:09.5]} 57... Qf2 {[%clk 0:00:03.1]} 58. Qe4+ {[%clk
0:00:09]} 58... Kh8 {[%clk 0:00:03.1]} 59. Qe8+ {[%clk 0:00:08.9]} 59... Kh7
{[%clk 0:00:03.6]} 60. Qf7 {[%clk 0:00:08.7]} 60... Qc2 {[%clk 0:00:03.1]} 61.
Qe6 {[%clk 0:00:06.4]} 61... Qd3 {[%clk 0:00:02.6]} 62. h4 {[%clk 0:00:06.3]}
62... d5 {[%clk 0:00:02.8]} 63. h5 {[%clk 0:00:06.6]} 63... c5 {[%clk
0:00:02.9]} 64. Qd7 {[%clk 0:00:04.4]} 64... c4 {[%clk 0:00:02.9]} 65. Qe7
{[%clk 0:00:03.1]} 65... c3 {[%clk 0:00:03.8]} 66. Be5 {[%clk 0:00:03.1]} 66...
Qxe3 {[%clk 0:00:02]} 67. Qxg7# {[%clk 0:00:03.1]} 1-0

[Event "*** Titled Tuesday Blitz"]
[Site "Chess.com"]
[Date "2020.05.19"]
[Round "3"]
[White "cukus"]
[Black "Buffy7"]
[Result "1-0"]
[WhiteElo "2487"]
[BlackElo "2631"]
[TimeControl "180+1"]
[EndTime "12:30:09 PDT"]
[Termination "cukus won by checkmate"]

1. e4 {[%clk 0:03:00.9]} 1... c5 {[%clk 0:03:00.1]} 2. Nf3 {[%clk 0:02:59.7]}
2... e6 {[%clk 0:03:00.7]} 3. d4 {[%clk 0:02:58.8]} 3... cxd4 {[%clk 0:03:01.6]}
4. Nxd4 {[%clk 0:02:58.2]} 4... Nf6 {[%clk 0:03:02.2]} 5. Nc3 {[%clk 0:02:55]}
5... d6 {[%clk 0:03:02.7]} 6. g4 {[%clk 0:02:50.2]} 6... h6 {[%clk 0:03:02.9]}
7. h4 {[%clk 0:02:49.4]} 7... Nc6 {[%clk 0:03:02.9]} 8. Rg1 {[%clk 0:02:49]}
8... h5 {[%clk 0:02:38.7]} 9. gxh5 {[%clk 0:02:45.9]} 9... Nxh5 {[%clk
0:02:30.2]} 10. Bg5 {[%clk 0:02:39.6]} 10... Qb6 {[%clk 0:02:23]} 11. Nb3 {[%clk
0:02:37.5]} 11... a6 {[%clk 0:02:22.5]} 12. Qd2 {[%clk 0:02:34.1]} 12... Qc7
{[%clk 0:02:15.5]} 13. O-O-O {[%clk 0:02:33.7]} 13... b5 {[%clk 0:02:09.7]} 14.
Kb1 {[%clk 0:02:31.4]} 14... b4 {[%clk 0:02:08.8]} 15. Ne2 {[%clk 0:02:28.3]}
15... Ne5 {[%clk 0:02:00.7]} 16. Ned4 {[%clk 0:02:18.7]} 16... Rb8 {[%clk
0:01:43.1]} 17. f4 {[%clk 0:02:08.7]} 17... Nc4 {[%clk 0:01:42.4]} 18. Bxc4
{[%clk 0:01:37.5]} 18... Qxc4 {[%clk 0:01:43.3]} 19. e5 {[%clk 0:01:37.9]} 19...
d5 {[%clk 0:01:33.9]} 20. f5 {[%clk 0:01:37.1]} 20... exf5 {[%clk 0:01:29.5]}
21. e6 {[%clk 0:01:15.4]} 21... fxe6 {[%clk 0:01:29.2]} 22. Rde1 {[%clk
0:01:01.4]} 22... Kf7 {[%clk 0:01:21.2]} 23. Na5 {[%clk 0:00:31.3]} 23... Qc7
{[%clk 0:01:19.9]} 24. Nac6 {[%clk 0:00:31.9]} 24... Bc5 {[%clk 0:00:46]} 25.
Nxb8 {[%clk 0:00:30]} 25... Qxb8 {[%clk 0:00:46.1]} 26. Be3 {[%clk 0:00:22.7]}
26... Qd6 {[%clk 0:00:34.2]} 27. Qg2 {[%clk 0:00:17.2]} 27... Ng3 {[%clk
0:00:19.4]} 28. Qxg3 {[%clk 0:00:10.8]} 28... Qxg3 {[%clk 0:00:19.5]} 29. Rxg3
{[%clk 0:00:11.7]} 29... Rxh4 {[%clk 0:00:19.7]} 30. Nf3 {[%clk 0:00:10.4]}
30... Bxe3 {[%clk 0:00:16.9]} 31. Ne5+ {[%clk 0:00:06.3]} 31... Kf6 {[%clk
0:00:14.2]} 32. Rgxe3 {[%clk 0:00:07.2]} 32... g5 {[%clk 0:00:14.5]} 33. a3
{[%clk 0:00:06.7]} 33... a5 {[%clk 0:00:14]} 34. axb4 {[%clk 0:00:06.1]} 34...
axb4 {[%clk 0:00:14.9]} 35. Nf3 {[%clk 0:00:05.3]} 35... Re4 {[%clk 0:00:14.8]}
36. Nd2 {[%clk 0:00:04.3]} 36... Rxe3 {[%clk 0:00:14.5]} 37. Rxe3 {[%clk
0:00:05.2]} 37... f4 {[%clk 0:00:15]} 38. Rb3 {[%clk 0:00:04.9]} 38... g4 {[%clk
0:00:12.4]} 39. Rxb4 {[%clk 0:00:04.7]} 39... e5 {[%clk 0:00:12.9]} 40. Kc1
{[%clk 0:00:04.9]} 40... g3 {[%clk 0:00:12.4]} 41. Kd1 {[%clk 0:00:05.2]} 41...
Bg4+ {[%clk 0:00:12.9]} 42. Ke1 {[%clk 0:00:05.1]} 42... Kf5 {[%clk 0:00:13]}
43. Rb8 {[%clk 0:00:04.7]} 43... e4 {[%clk 0:00:12.9]} 44. Rf8+ {[%clk
0:00:04.6]} 44... Ke5 {[%clk 0:00:13.3]} 45. Re8+ {[%clk 0:00:04.4]} 45... Kf5
{[%clk 0:00:13.4]} 46. Rf8+ {[%clk 0:00:03.8]} 46... Ke5 {[%clk 0:00:13.7]} 47.
Re8+ {[%clk 0:00:04.2]} 47... Kd4 {[%clk 0:00:14.3]} 48. Rg8 {[%clk 0:00:04]}
48... Bh3 {[%clk 0:00:12.1]} 49. Rg5 {[%clk 0:00:04.1]} 49... Be6 {[%clk
0:00:09.6]} 50. c3+ {[%clk 0:00:04]} 50... Ke3 {[%clk 0:00:09.8]} 51. Nf1+
{[%clk 0:00:03.5]} 51... Kf3 {[%clk 0:00:09.4]} 52. Nd2+ {[%clk 0:00:02.4]}
52... Ke3 {[%clk 0:00:09.1]} 53. c4 {[%clk 0:00:03.3]} 53... dxc4 {[%clk
0:00:08.9]} 54. Re5 {[%clk 0:00:03.3]} 54... c3 {[%clk 0:00:04.2]} 55. bxc3
{[%clk 0:00:03.1]} 55... Kd3 {[%clk 0:00:03.2]} 56. Nxe4 {[%clk 0:00:02.6]}
56... g2 {[%clk 0:00:04.1]} 57. Nc5+ {[%clk 0:00:02.5]} 57... Kxc3 {[%clk
0:00:04]} 58. Rg5 {[%clk 0:00:03.4]} 58... Kd4 {[%clk 0:00:04.3]} 59. Nxe6+
{[%clk 0:00:03.1]} 59... Ke3 {[%clk 0:00:05.2]} 60. Nxf4 {[%clk 0:00:03.3]}
60... Kxf4 {[%clk 0:00:05.1]} 61. Rxg2 {[%clk 0:00:03.5]} 61... Kf3 {[%clk
0:00:06]} 62. Re2 {[%clk 0:00:04.4]} 62... Kf4 {[%clk 0:00:06.7]} 63. Kd2 {[%clk
0:00:05.2]} 63... Kf5 {[%clk 0:00:07.6]} 64. Kd3 {[%clk 0:00:06]} 64... Kf4
{[%clk 0:00:08.5]} 65. Re4+ {[%clk 0:00:06.7]} 65... Kf3 {[%clk 0:00:09.4]} 66.
Kd4 {[%clk 0:00:07.2]} 66... Kf2 {[%clk 0:00:10.3]} 67. Ke5 {[%clk 0:00:07.5]}
67... Kf3 {[%clk 0:00:11.2]} 68. Kf5 {[%clk 0:00:08.3]} 68... Kg3 {[%clk
0:00:12]} 69. Re3+ {[%clk 0:00:08.5]} 69... Kf2 {[%clk 0:00:12.2]} 70. Kf4
{[%clk 0:00:09.4]} 70... Kg2 {[%clk 0:00:13]} 71. Re2+ {[%clk 0:00:09.7]} 71...
Kf1 {[%clk 0:00:13.4]} 72. Kf3 {[%clk 0:00:09.6]} 72... Kg1 {[%clk 0:00:14.3]}
73. Kg3 {[%clk 0:00:09.8]} 73... Kf1 {[%clk 0:00:15.1]} 74. Re3 {[%clk
0:00:10.2]} 74... Kg1 {[%clk 0:00:15.3]} 75. Re1# {[%clk 0:00:10.3]} 1-0

[Event "*** Titled Tuesday Blitz"]
[Site "Chess.com"]
[Date "2020.05.19"]
[Round "3"]
[White "vanea_03"]
[Black "MidnightFox"]
[Result "0-1"]
[WhiteElo "2627"]
[BlackElo "2486"]
[TimeControl "180+1"]
[EndTime "12:30:10 PDT"]
[Termination "MidnightFox won by checkmate"]

1. d4 {[%clk 0:03:00.9]} 1... Nf6 {[%clk 0:02:59.4]} 2. c4 {[%clk 0:03:00.8]}
2... g6 {[%clk 0:02:59.7]} 3. Nc3 {[%clk 0:02:58.9]} 3... d5 {[%clk 0:03:00.1]}
4. cxd5 {[%clk 0:02:59.1]} 4... Nxd5 {[%clk 0:02:59]} 5. Na4 {[%clk 0:02:59.8]}
5... Bg7 {[%clk 0:02:57.5]} 6. e4 {[%clk 0:02:59.8]} 6... Nb6 {[%clk 0:02:57.6]}
7. Be3 {[%clk 0:03:00.1]} 7... O-O {[%clk 0:02:54.5]} 8. Nf3 {[%clk 0:03:00]}
8... Nxa4 {[%clk 0:02:50.7]} 9. Qxa4 {[%clk 0:02:59.6]} 9... Nd7 {[%clk
0:02:45.7]} 10. Rd1 {[%clk 0:02:53.3]} 10... Nf6 {[%clk 0:02:44.8]} 11. Bd3
{[%clk 0:02:50.1]} 11... Bg4 {[%clk 0:02:44.5]} 12. h3 {[%clk 0:02:47.5]} 12...
Bxf3 {[%clk 0:02:44.5]} 13. gxf3 {[%clk 0:02:48.4]} 13... Qc8 {[%clk 0:02:39.2]}
14. Rc1 {[%clk 0:02:34.1]} 14... c6 {[%clk 0:02:37.9]} 15. Qa5 {[%clk
0:02:24.3]} 15... Rd8 {[%clk 0:02:34.8]} 16. Ke2 {[%clk 0:02:23.9]} 16... Nd7
{[%clk 0:02:17.9]} 17. e5 {[%clk 0:01:50.8]} 17... Nb6 {[%clk 0:02:16.4]} 18.
Be4 {[%clk 0:01:48.8]} 18... Qe6 {[%clk 0:02:13.4]} 19. b3 {[%clk 0:01:48.4]}
19... f6 {[%clk 0:02:07]} 20. f4 {[%clk 0:01:42.5]} 20... Nd5 {[%clk 0:01:58.9]}
21. Qe1 {[%clk 0:01:19.5]} 21... Rd7 {[%clk 0:01:45.9]} 22. Qg1 {[%clk
0:01:09.7]} 22... Rad8 {[%clk 0:01:44.8]} 23. f5 {[%clk 0:01:04.3]} 23... gxf5
{[%clk 0:01:18.3]} 24. Bh6 {[%clk 0:01:04.3]} 24... Nf4+ {[%clk 0:01:09.2]} 25.
Bxf4 {[%clk 0:00:40.3]} 25... fxe4 {[%clk 0:01:09.4]} 26. Bh6 {[%clk 0:00:37.8]}
26... Qf7 {[%clk 0:01:08.9]} 27. Qg4 {[%clk 0:00:25.9]} 27... f5 {[%clk
0:00:54.9]} 28. Qg5 {[%clk 0:00:25.7]} 28... e6 {[%clk 0:00:33.9]} 29. Rhg1
{[%clk 0:00:25.9]} 29... Kh8 {[%clk 0:00:32.8]} 30. Bxg7+ {[%clk 0:00:19.2]}
30... Qxg7 {[%clk 0:00:33.7]} 31. Qe3 {[%clk 0:00:19.5]} 31... Qf7 {[%clk
0:00:31.7]} 32. Rcd1 {[%clk 0:00:17.3]} 32... Qh5+ {[%clk 0:00:31.3]} 33. Ke1
{[%clk 0:00:17.9]} 33... Rg8 {[%clk 0:00:27.1]} 34. Rxg8+ {[%clk 0:00:17.9]}
34... Kxg8 {[%clk 0:00:28]} 35. Kd2 {[%clk 0:00:18.1]} 35... Rg7 {[%clk
0:00:24.1]} 36. Kc2 {[%clk 0:00:13.7]} 36... Rg2 {[%clk 0:00:19.8]} 37. Rd2
{[%clk 0:00:14.3]} 37... Rh2 {[%clk 0:00:17.7]} 38. d5 {[%clk 0:00:14.1]} 38...
Rxh3 {[%clk 0:00:16.9]} 39. Qxa7 {[%clk 0:00:12.5]} 39... cxd5 {[%clk
0:00:16.1]} 40. Qb8+ {[%clk 0:00:12.7]} 40... Kg7 {[%clk 0:00:15.3]} 41. Qxb7+
{[%clk 0:00:12.9]} 41... Qf7 {[%clk 0:00:13]} 42. Qc6 {[%clk 0:00:12.7]} 42...
Rh1 {[%clk 0:00:10.4]} 43. Kb2 {[%clk 0:00:11]} 43... f4 {[%clk 0:00:10.7]} 44.
Rc2 {[%clk 0:00:10.9]} 44... e3 {[%clk 0:00:10.2]} 45. fxe3 {[%clk 0:00:11.8]}
45... f3 {[%clk 0:00:10.6]} 46. Qd6 {[%clk 0:00:12.4]} 46... f2 {[%clk
0:00:10.6]} 47. Rc7 {[%clk 0:00:12.9]} 47... f1=Q {[%clk 0:00:10.6]} 48. Rxf7+
{[%clk 0:00:13.5]} 48... Qxf7 {[%clk 0:00:11.5]} 49. a4 {[%clk 0:00:13.6]} 49...
Qf2+ {[%clk 0:00:09.3]} 50. Ka3 {[%clk 0:00:14.2]} 50... Ra1+ {[%clk 0:00:09.1]}
51. Kb4 {[%clk 0:00:14.9]} 51... Qd2+ {[%clk 0:00:09]} 52. Kb5 {[%clk
0:00:15.5]} 52... Qd3+ {[%clk 0:00:08.8]} 53. Kc6 {[%clk 0:00:16]} 53... Rc1+
{[%clk 0:00:08]} 54. Kd7 {[%clk 0:00:16.4]} 54... Qg6 {[%clk 0:00:07.5]} 55.
Qe7+ {[%clk 0:00:07.5]} 55... Qf7 {[%clk 0:00:07.3]} 56. Qxf7+ {[%clk
0:00:07.3]} 56... Kxf7 {[%clk 0:00:08.2]} 57. a5 {[%clk 0:00:07.6]} 57... h5
{[%clk 0:00:08]} 58. b4 {[%clk 0:00:07.3]} 58... h4 {[%clk 0:00:08.3]} 59. a6
{[%clk 0:00:07.1]} 59... h3 {[%clk 0:00:08.6]} 60. b5 {[%clk 0:00:07.1]} 60...
h2 {[%clk 0:00:08.2]} 61. a7 {[%clk 0:00:07.7]} 61... Ra1 {[%clk 0:00:08]} 62.
b6 {[%clk 0:00:08.4]} 62... h1=Q {[%clk 0:00:08.1]} 63. Kc7 {[%clk 0:00:09]}
63... Qh8 {[%clk 0:00:07.3]} 64. b7 {[%clk 0:00:09]} 64... Rxa7 {[%clk 0:00:07]}
65. Kb6 {[%clk 0:00:09.9]} 65... Rxb7+ {[%clk 0:00:07.3]} 66. Kxb7 {[%clk
0:00:09.7]} 66... Ke7 {[%clk 0:00:07.8]} 67. Kc6 {[%clk 0:00:10.6]} 67... Qc8+
{[%clk 0:00:07.3]} 68. Kb5 {[%clk 0:00:10.8]} 68... Kd7 {[%clk 0:00:07.8]} 69.
Kb6 {[%clk 0:00:11.6]} 69... Qc6+ {[%clk 0:00:07.8]} 70. Ka5 {[%clk 0:00:12.1]}
70... Qb7 {[%clk 0:00:08]} 71. e4 {[%clk 0:00:13]} 71... Kc6 {[%clk 0:00:08.1]}
72. exd5+ {[%clk 0:00:13.9]} 72... Kc5 {[%clk 0:00:08.4]} 73. Ka4 {[%clk
0:00:13.5]} 73... Qb4# {[%clk 0:00:08.5]} 0-1